lending/lending_fUSD_20240417
["ID","MTS","AMOUNT","RATE_DAILY","PERIOD"]
[322808276,1713338147387,-500.0,0.00031861,30]
[322808277,1713338147413,-292.15989399,0.00031861,30]
[322808278,1713338147438,-554.32299891,0.00031861,30]
[322808279,1713338147461,-511.99407111,0.00031861,30]
[322808280,1713338147487,-500.0,0.00031861,30]
[322808281,1713338147511,-500.0,0.00031861,30]
[322808282,1713338147536,-500.0,0.00031861,30]
[322808283,1713338147561,-500.0,0.00031861,30]
[322808284,1713338147586,-500.0,0.00031861,30]
[322808285,1713338147611,-271.27352438,0.00031861,30]
[322808286,1713338147636,-500.0,0.00031861,30]
[322808287,1713338147661,-500.0,0.00031861,30]
[322808288,1713338147685,-500.0,0.00031861,30]
[322808289,1713338147709,-304.75398855,0.00031861,30]
[322808290,1713338147734,-633.31628361,0.00031861,30]
[322808291,1713338147760,-165.96095291,0.00031861,30]
[322808292,1713338147784,-522.83270128,0.00031861,30]
[322808293,1713338147809,-500.0,0.00031861,30]
[322808294,1713338147833,-195.48597704,0.00031861,30]
[322808295,1713338147858,-519.45588628,0.00031861,30]
[322808296,1713338147883,-500.0,0.00031861,30]
[322808297,1713338147907,-500.0,0.00031861,30]
[322808298,1713338147935,-167.80094327,0.00031861,30]
[322808299,1713338147961,-500.0,0.00031861,30]
[322808300,1713338147987,-500.0,0.00031861,30]
[322808301,1713338148013,-532.52943515,0.00031861,30]
[322808302,1713338148037,-452.62252068,0.00031861,30]
[322808303,1713338148063,-500.0,0.00031861,30]
[322808304,1713338148088,-645.95994456,0.00031861,30]
[322808305,1713338148113,-500.0,0.00031861,30]
[322808306,1713338148137,-500.0,0.00031861,30]
[322808307,1713338148302,-247.07219844,0.00031861,30]
[322808308,1713338148328,-500.0,0.00031861,30]
[322808309,1713338148353,-500.0,0.00031861,30]
[322808310,1713338148378,-500.0,0.00031861,30]
[322808311,1713338148403,-500.0,0.00031861,30]
[322808312,1713338148429,-500.0,0.00031861,30]
[322808313,1713338148455,-500.0,0.00031861,30]
[322808314,1713338148481,-500.0,0.00031861,30]
[322808315,1713338148506,-500.0,0.00031861,30]
[322808316,1713338148531,-500.0,0.00031861,30]
[322808317,1713338148555,-500.0,0.00031861,30]
[322808318,1713338148580,-520.36782121,0.00031861,30]
[322808319,1713338148607,-500.0,0.00031861,30]
[322808320,1713338148632,-500.0,0.00031861,30]
[322808321,1713338148657,-500.0,0.00031861,30]
[322808322,1713338148685,-500.0,0.00031861,30]
[322808323,1713338148710,-500.0,0.00031861,30]
[322808324,1713338148734,-500.0,0.00031861,30]
[322808325,1713338148759,-500.0,0.00031861,30]
[322808326,1713338148783,-441.99373833,0.00031861,30]
[322808327,1713338148808,-539.15380652,0.00031861,30]
[322808328,1713338148833,-327.4482639,0.00031861,30]
[322808329,1713338148858,-527.09888044,0.00031861,30]
[322808330,1713338148882,-545.89246552,0.00031861,30]
[322808331,1713338148907,-500.0,0.00031861,30]
[322808332,1713338148934,-500.0,0.00031861,30]
[322808333,1713338148959,-542.18443552,0.00031861,30]
[322808334,1713338148983,-500.0,0.00031861,30]
[322808335,1713338149008,-500.0,0.00031861,30]
[322808336,1713338149032,-424.95735234,0.00031861,30]
[322808337,1713338149058,-516.55950768,0.00031861,30]
[322808338,1713338149083,-385.78118108,0.00031861,30]
[322808339,1713338149108,-500.0,0.00031861,30]
[322808340,1713338149132,-500.0,0.00031861,30]
[322808341,1713338149160,-500.0,0.00031861,30]
[322808342,1713338149185,-484.91495185,0.00031861,30]
[322808343,1713338149210,-500.0,0.00031861,30]
[322808344,1713338149236,-500.0,0.00031861,30]
[322808345,1713338149261,-500.0,0.00031861,30]
[322808346,1713338149287,-500.0,0.00031861,30]
[322808347,1713338149313,-500.0,0.00031861,30]
[322808348,1713338149340,-500.0,0.00031861,30]
[322808349,1713338149366,-633.89913693,0.00031861,30]
[322808350,1713338149390,-500.0,0.00031861,30]
[322808351,1713338149417,-500.0,0.00031861,30]
[322808352,1713338149442,-500.0,0.00031861,30]
[322808353,1713338149467,-500.0,0.00031861,30]
[322808354,1713338149492,-527.48596304,0.00031861,30]
[322808355,1713338149516,-536.13940185,0.00031861,30]
[322808357,1713338234993,577.85023805,0.00031861,30]
[322808358,1713338249521,500.0,0.00031861,30]
[322808359,1713338249599,500.0,0.00031861,30]
[322808360,1713338249799,500.0,0.00031861,30]
[322808361,1713338250060,500.0,0.00031861,30]
[322808362,1713338250325,573.02413279,0.00031861,30]
[322808363,1713338276417,612.15,0.00015428,2]
[322808364,1713338410670,500.0,0.00031868,30]
[322808365,1713338410964,500.0,0.00031868,30]
[322808366,1713338411225,500.0,0.00031868,30]
[322808367,1713338411514,241.98781948,0.00031868,30]
[322808368,1713338446317,-1000.0,0.00028219,30]
[322808369,1713338446345,-18484.20506758,0.00028308,30]
[322808370,1713338446370,-440.375,0.00028356,30]
[322808371,1713338446396,-1000.0,0.00028493,30]
[322808372,1713338446423,-1000.0,0.00028767,30]
[322808373,1713338446450,-653.47494614,0.00028986,30]
[322808374,1713338446475,-600.0,0.00029,30]
[322808375,1713338446500,-1000.0,0.00029041,30]
[322808376,1713338446525,-653.47494614,0.00029123,30]
[322808377,1713338446551,-653.47494614,0.00029233,30]
[322808378,1713338446576,-1000.0,0.00029315,30]
[322808379,1713338446604,-653.47494614,0.0002937,30]
[322808380,1713338446630,-653.47494614,0.00029479,30]
[322808381,1713338446657,-653.47494614,0.00029589,30]
[322808382,1713338446683,-653.47494614,0.00029726,30]
[322808383,1713338446709,-653.47494614,0.00029836,30]
[322808384,1713338446736,-653.47494614,0.00029973,30]
[322808385,1713338446763,-38918.17897507,0.0003,30]
[322808386,1713338446788,-1400.0,0.0003,30]
[322808387,1713338446813,-600.0,0.0003,31]
[322808388,1713338446839,-1000.0,0.0003,30]
[322808389,1713338446864,-2269.0,0.0003,30]
[322808390,1713338446891,-653.47494614,0.00030082,30]
[322808391,1713338446917,-653.47494614,0.00030219,30]
[322808392,1713338446942,-653.47494614,0.00030329,30]
[322808393,1713338446967,-1000.0,0.00030411,30]
[322808394,1713338446991,-653.47494614,0.00030466,30]
[322808395,1713338447018,-653.47494614,0.00030575,30]
[322808396,1713338447046,-150.0,0.00030691,120]
[322808397,1713338447075,-653.47494614,0.00030712,30]
[322808398,1713338447101,-150.0,0.00030797,120]
[322808399,1713338447130,-600.0,0.00031,32]
[322808400,1713338447155,-1004.4,0.00031,30]
[322808401,1713338447185,-304.73226456,0.000314,30]
[322808402,1713338447213,-150.0,0.00031449,120]
[322808403,1713338447239,-600.0,0.000316,120]
[322808404,1713338447269,-1917526.98450069,0.0003178,30]
[322808405,1713338472155,500.0,0.00031868,30]
[322808406,1713338472423,500.0,0.00031868,30]
[322808407,1713338472823,304.36296428,0.00031868,30]
[322808408,1713338543583,500.0,0.00031868,30]
[322808409,1713338543856,358.18328767,0.00031868,30]
[322808410,1713338562421,170.38052819,5e-05,2]
[322808441,1713338602189,-38928.3267172,0.0003,30]
[322808442,1713338602229,-1212786.68573809,0.0003178,30]
[322808443,1713338602274,-150.0,0.00031929,120]
[322808444,1713338602298,-11236.37089739,0.00032,30]
[322808445,1713338602325,-600.0,0.00032,33]
[322808446,1713338602351,-1169.9320607,0.00032188,90]
[322808447,1713338602379,-150.0,0.00032877,30]
[322808448,1713338602400,-150.0,0.00032877,30]
[322808449,1713338602423,-150.0,0.00032877,30]
[322808450,1713338602446,-150.0,0.00032877,30]
[322808451,1713338602469,-150.0,0.00032877,30]
[322808452,1713338602491,-150.0,0.00032877,30]
[322808453,1713338602515,-150.0,0.00032877,30]
[322808454,1713338602537,-150.0,0.00032877,30]
[322808455,1713338602561,-150.0,0.00032877,30]
[322808456,1713338602584,-150.0,0.00032877,30]
[322808457,1713338602611,-150.0,0.00032877,30]
[322808458,1713338602634,-150.0,0.00032877,30]
[322808459,1713338602657,-150.0,0.00032877,30]
[322808460,1713338602681,-150.0,0.00032877,30]
[322808461,1713338602705,-150.0,0.00032877,30]
[322808462,1713338602727,-150.0,0.00032877,30]
[322808463,1713338602753,-150.0,0.00032877,30]
[322808464,1713338602778,-150.0,0.00032877,30]
[322808465,1713338602802,-150.0,0.00032877,30]
[322808466,1713338602825,-150.0,0.00032877,30]
[322808467,1713338602848,-150.0,0.00032877,30]
[322808468,1713338602872,-150.0,0.00032877,30]
[322808469,1713338602895,-150.0,0.00032877,30]
[322808470,1713338602919,-150.0,0.00032877,30]
[322808471,1713338602941,-150.0,0.00032877,30]
[322808472,1713338602965,-150.0,0.00032877,30]
[322808473,1713338602988,-150.0,0.00032877,30]
[322808474,1713338603014,-150.0,0.00032877,30]
[322808475,1713338603037,-150.0,0.00032877,30]
[322808476,1713338603061,-150.0,0.00032877,30]
[322808477,1713338603085,-150.0,0.00032877,30]
[322808478,1713338603109,-150.0,0.00032877,30]
[322808479,1713338603132,-150.0,0.00032877,30]
[322808480,1713338603155,-150.0,0.00032877,30]
[322808481,1713338603179,-150.0,0.00032877,30]
[322808482,1713338603202,-150.0,0.00032877,30]
[322808483,1713338603225,-150.0,0.00032877,30]
[322808484,1713338603248,-150.0,0.00032877,30]
[322808485,1713338603272,-150.0,0.00032877,30]
[322808486,1713338603296,-150.0,0.00032877,30]
[322808487,1713338603321,-150.0,0.00032877,30]
[322808488,1713338603345,-150.0,0.00032877,30]
[322808489,1713338603368,-150.0,0.00032877,30]
[322808490,1713338603429,-150.0,0.00032877,30]
[322808491,1713338603455,-150.0,0.00032877,30]
[322808492,1713338603482,-150.0,0.00032877,30]
[322808493,1713338603510,-150.0,0.00032877,30]
[322808494,1713338603535,-150.0,0.00032877,30]
[322808495,1713338603559,-282.32308754,0.00032877,30]
[322808496,1713338603583,-150.0,0.00032877,30]
[322808497,1713338603607,-150.0,0.00032877,30]
[322808498,1713338603631,-150.0,0.00032877,30]
[322808499,1713338603654,-586.5,0.00032886,30]
[322808500,1713338603678,-586.5,0.00032886,30]
[322808501,1713338603701,-373597.67083004,0.000329,30]
[322808502,1713338603725,-13066.29631748,0.000329,30]
[322808503,1713338603750,-157.3785624,0.00033,120]
[322808504,1713338603776,-600.0,0.00033,34]
[322808505,1713338603799,-633.22721132,0.00033,34]
[322808506,1713338604006,-150.0,0.00033149,120]
[322808507,1713338604034,-586.5,0.00033159,30]
[322808508,1713338604061,-586.5,0.00033159,30]
[322808509,1713338604086,-586.5,0.00033433,30]
[322808510,1713338604109,-586.5,0.00033433,30]
[322808511,1713338604134,-586.5,0.00033706,30]
[322808512,1713338604157,-586.5,0.00033706,30]
[322808513,1713338604181,-150.0,0.00033771,120]
[322808514,1713338604205,-586.5,0.00033979,30]
[322808515,1713338604228,-586.5,0.00033979,30]
[322808516,1713338604253,-600.0,0.00034,35]
[322808517,1713338604280,-586.5,0.00034252,30]
[322808518,1713338604308,-586.5,0.00034252,30]
[322808519,1713338604331,-586.5,0.00034525,30]
[322808520,1713338604355,-586.5,0.00034525,30]
[322808521,1713338604381,-150.0,0.00034722,120]
[322808522,1713338604407,-19613.03862639,0.00035,30]
[322808523,1713338604431,-600.0,0.00035,36]
[322808524,1713338604454,-6646.08996563,0.000351,30]
[322808525,1713338604480,-150.0,0.0003518,120]
[322808526,1713338604504,-150.0,0.00035662,120]
[322808527,1713338604533,-150.0,0.00035981,120]
[322808528,1713338604556,-600.0,0.00036,37]
[322808529,1713338604581,-701.82166909,0.000364,30]
[322808530,1713338604606,-150.0,0.00036938,120]
[322808531,1713338604629,-393.23165818,0.00037,30]
[322808532,1713338604653,-600.0,0.00037,38]
[322808533,1713338604676,-150.0,0.0003705,120]
[322808534,1713338604700,-600.0,0.00038,39]
[322808535,1713338604723,-52715.31547478,0.00038,30]
[322808536,1713338604747,-558.46142864,0.000384,33]
[322808537,1713338604773,-150.0,0.00038487,120]
[322808538,1713338604797,-747.63812709,0.000389,30]
[322808539,1713338604822,-150.0,0.00038909,120]
[322808540,1713338604850,-600.0,0.00039,40]
[322808541,1713338604874,-159.89830175,0.000399,48]
[322808542,1713338604900,-100000.0,0.0004,30]
[322808543,1713338604925,-959.93422423,0.0004,30]
[322808544,1713338604949,-544.7101363,0.0004,120]
[322808545,1713338604972,-214.29199633,0.0004,30]
[322808546,1713338604996,-203.39439469,0.0004,120]
[322808547,1713338605020,-81037.32560034,0.0004,30]
[322808548,1713338605044,-61335.6369744,0.0004,30]
[322808549,1713338616179,361.00536059,5e-05,2]
[322808550,1713338633043,6064.66545735,0.00031868,30]
[322808551,1713338634086,361.00536059,5e-05,2]
[322808552,1713338654122,340.96328441,5e-05,2]
[322808554,1713338709574,244.30328253,0.00016,2]
[322808566,1713338717453,271.8164005,0.00031874,30]
[322808567,1713338717725,270.97983444,0.00031874,30]
[322808568,1713338729914,515.35443079,0.00016,2]
[322808569,1713338730602,385.78118108,0.00031874,30]
[322808570,1713338734680,749.15781556,0.00016,2]
[322808571,1713338735439,445.0,0.00031874,120]
[322808572,1713338738794,486.94345415,0.00016,2]
[322808573,1713338740987,414.0,0.00031874,30]
[322808574,1713338750884,333.55445479,0.00031874,30]
[322808575,1713338753372,473.9600326,0.00031874,30]
[322808576,1713338758658,250.64963351,0.00031874,30]
[322808577,1713338760148,315.387678,0.00031874,30]
[322808579,1713338768824,239.77036494,0.00031874,30]
[322808580,1713338769609,7185.60733248,0.00015901,2]
[322808581,1713338772228,441.76,0.00031874,30]
[322808582,1713338772927,209.86237028,0.00031874,30]
[322808583,1713338775583,638.71989399,0.00031874,30]
[322808584,1713338777738,271.27352438,0.00031874,30]
[322808585,1713338780624,184.7260633,0.00031874,30]
[322808586,1713338783790,195.48597704,0.00031874,30]
[322808587,1713338786742,309.56797407,0.00031874,30]
[322808588,1713338786790,340.7549262,0.00031874,30]
[322808589,1713338792622,238.24120481,0.00031874,30]
[322808590,1713338796316,285.15642693,0.00031874,30]
[322808591,1713338799241,500.0,0.00031874,30]
[322808592,1713338800881,503.53430142,0.00031874,30]
[322808593,1713338803921,327.4482639,0.00031874,30]
[322808594,1713338806580,209.82063371,0.00031874,30]
[322808595,1713338824020,336.78642539,0.00031874,30]
[322808596,1713338824793,278.45214253,0.00031874,30]
[322808597,1713338825506,813.928533,0.00031874,30]
[322808598,1713338833487,410.3197,0.00031874,30]
[322808599,1713338836425,581.54,0.00015372,2]
[322808600,1713338839290,271.97038456,0.00031874,30]
[322808601,1713338843017,247.07219844,0.00031874,30]
[322808602,1713338847772,332.51688752,0.00031874,30]
[322808603,1713338859334,299.47827477,0.00031874,30]
[322808604,1713338861135,155.04701509,0.00031874,30]
[322808605,1713338868195,424.95735234,0.00031874,30]
[322808606,1713338869102,430.57250079,0.00031874,30]
[322808607,1713338871609,188.0,0.00031874,30]
[322808608,1713338872942,188.0,0.00031874,30]
[322808609,1713338873758,188.0,0.00031874,30]
[322808610,1713338874672,429.99,0.00031874,30]
[322808611,1713338875335,200.0,0.00031874,30]
[322808612,1713338875474,176.0,0.00031874,30]
[322808613,1713338876873,200.0,0.00031874,30]
[322808614,1713338877322,176.0,0.00031874,30]
[322808615,1713338883363,250.44,0.00031874,30]
[322808616,1713338885573,158.73092298,0.00031874,30]
[322808617,1713338888370,406.36585509,0.00031874,30]
[322808618,1713338896555,388.58825991,0.00031874,30]
[322808619,1713338897164,260.88892907,0.00031874,30]
[322808620,1713338898158,244.99420888,0.00031874,30]
[322808621,1713338898521,286.22872399,0.00031874,30]
[322808622,1713338900675,481.50362875,0.00031874,30]
[322808623,1713338903111,419.43827081,0.00031874,30]
[322808624,1713338904343,344.10978337,0.00031874,30]
[322808625,1713338906464,266.39901066,0.00031874,30]
[322808626,1713338910849,180.49107942,0.00031874,30]
[322808627,1713338912420,550.86620913,0.00031874,30]
[322808628,1713338914575,555.19689941,0.00031874,30]
[322808629,1713338914627,630.6107,0.00031874,30]
[322808630,1713338916648,250.72048209,0.00031874,30]
[322808631,1713338917078,266.1,0.00031874,30]
[322808632,1713338917117,408.19673656,0.00031874,30]
[322808633,1713338917798,194.71110834,0.00031874,30]
[322808634,1713338921005,165.99973776,0.00031874,30]
[322808635,1713338923136,605.17163416,0.00031874,30]
[322808636,1713338924709,215.10099706,0.00031874,30]
[322808637,1713338925439,207.53994365,0.00031874,30]
[322808638,1713338926670,332.48908102,0.00031874,30]
[322808639,1713338927860,432.61673245,0.00031874,30]
[322808640,1713338928981,259.06026782,0.00031874,30]
[322808641,1713338929844,336.31719222,0.00031874,30]
[322808642,1713338931229,365.36533927,0.00031874,30]
[322808643,1713338934878,500.0,0.00031874,30]
[322808644,1713338935244,179.96116908,0.00031874,30]
[322808645,1713338936657,500.0,0.00031874,30]
[322808646,1713338937244,300.71641929,0.00031874,30]
[322808647,1713338937408,602.4346199,0.00031874,30]
[322808648,1713338939393,215.3270228,0.00031874,30]
[322808649,1713338941471,220.2061673,0.00031874,30]
[322808650,1713338951069,268.25789537,0.00031874,30]
[322808651,1713338961399,244.35591303,0.00031874,30]
[322808652,1713338969962,383.16547486,0.00031874,30]
[322808653,1713338970269,192.62243193,0.00031874,30]
[322808654,1713338972077,321.12109619,0.00031874,30]
[322808655,1713338981517,430.48568419,0.00031874,30]
[322808656,1713338997461,168.95218347,0.00031874,30]
[322808657,1713339001892,346.85086286,0.00031884,30]
[322808658,1713339001922,440.803002,0.00031884,30]
[322808659,1713339003019,282.44386902,0.00031884,30]
[322808660,1713339015211,393.38151575,0.00031884,30]
[322808661,1713339018127,461.30424795,0.00031884,30]
[322808662,1713339021420,172.4572714,0.00031884,30]
[322808663,1713339027648,356.09262772,0.00031884,30]
[322808669,1713339032053,-2084.58601039,0.00016775,2]
[322808670,1713339032064,-1671.89513975,0.00016775,2]
[322808671,1713339032074,-363.48192365,0.00016775,2]
[322808672,1713339032082,-155.0,0.00016776,2]
[322808673,1713339032091,-3773.69257213,0.00016776,2]
[322808674,1713339032099,-155.0,0.00016777,2]
[322808675,1713339032108,-532.73112667,0.00016777,2]
[322808676,1713339032117,-155.0,0.00016778,2]
[322808677,1713339032126,-155.0,0.00016779,2]
[322808678,1713339032135,-444.05092147,0.00016779,2]
[322808679,1713339032144,-150.0,0.0001678,2]
[322808680,1713339032153,-150.0,0.0001678,2]
[322808681,1713339032162,-150.0,0.0001678,2]
[322808682,1713339032171,-842.29655357,0.0001678,2]
[322808683,1713339032180,-155.0,0.0001678,2]
[322808684,1713339032190,-750.14,0.00016782,2]
[322808685,1713339032199,-894.218109,0.00017077,2]
[322808686,1713339032208,-1287.49239605,0.0001708,2]
[322808687,1713339032216,-2196.56,0.00017084,2]
[322808688,1713339032226,-5318.29,0.00017084,2]
[322808689,1713339032235,-160.18,0.00017087,2]
[322808690,1713339032244,-155.0,0.00017098,2]
[322808691,1713339032252,-457.96,0.0001721,2]
[322808692,1713339032262,-19924.76,0.0001729,2]
[322808693,1713339032271,-249.86,0.0001729,2]
[322808694,1713339032280,-581.54,0.00017636,2]
[322808695,1713339032289,-316.66,0.000178,2]
[322808696,1713339032300,-3468.196,0.000178,2]
[322808697,1713339032309,-499.99,0.000178,2]
[322808698,1713339032319,-171.00530772,0.000178,2]
[322808700,1713339032328,-1666.93283759,0.0001788,2]
[322808702,1713339032337,-1744.56280283,0.0001788,2]
[322808703,1713339032345,-194.7287023,0.00017898,2]
[322808704,1713339032355,-268.1828972,0.00017898,2]
[322808705,1713339032364,-358.18328767,0.00017898,2]
[322808706,1713339032373,-155.16870169,0.00017899,2]
[322808707,1713339032382,-89436.84489448,0.000179,2]
[322808708,1713339032393,-267.11689591,0.000179,2]
[322808709,1713339032404,-6666.6,0.000179,2]
[322808710,1713339032416,-278.67485386,0.000179,2]
[322808711,1713339032887,205.64,0.00031884,30]
[322808712,1713339035380,241.98781948,0.00031884,30]
[322808718,1713339037904,285.83214129,0.00031884,30]
[322808719,1713339038062,-203.79893697,0.00016774,2]
[322808720,1713339038071,-264.124201,0.0001781,2]
[322808721,1713339038080,-1469.79649456,0.000179,2]
[322808722,1713339038091,-2632.3393284,0.000179,2]
[322808723,1713339038102,-5066.31356189,0.000179,2]
[322808724,1713339038142,-47018.75766705,0.000179,2]
[322808725,1713339038160,-836.87762474,0.000179,2]
[322808726,1713339038218,-643.03847326,0.000179,2]
[322808727,1713339038231,-1399.11811231,0.000179,2]
[322808728,1713339038280,-386.09598666,0.000179,2]
[322808730,1713339038617,254.38793374,0.00031884,30]
[322808735,1713339040145,-3909.7713411,0.000179,2]
[322808736,1713339040325,-630.96171063,0.000179,2]
[322808739,1713339041004,-267.63799773,0.000179,2]
[322808740,1713339041016,-3989.74519,0.000179,2]
[322808741,1713339041077,203.84110128,0.00031884,30]
[322808742,1713339041115,433.41253596,0.00031884,30]
[322808764,1713339043099,-80100.30986742,0.000179,2]
[322808765,1713339043108,-1000.0,0.000179,2]
[322808766,1713339043118,-3913.549,0.000179,2]
[322808767,1713339043128,-21354.77082977,0.000179,2]
[322808768,1713339043462,-1331.24,0.000179,2]
[322808769,1713339043482,-77313.98917023,0.000179,2]
[322808770,1713339043492,-500.0,0.000179,2]
[322808771,1713339043502,-160.18,0.00017977,2]
[322808772,1713339043511,-162.40142207,0.00017998,2]
[322808773,1713339043523,-202.10380821,0.00017998,2]
[322808774,1713339043532,-237.1850759,0.00017999,2]
[322808775,1713339043542,-20000.0,0.00018,2]
[322808776,1713339043552,-1666.9328375,0.00018033,2]
[322808777,1713339043563,-1744.56280279,0.00018033,2]
[322808778,1713339043572,-164.44,0.00018056,2]
[322808779,1713339043581,-171.00530768,0.00018075,2]
[322808780,1713339043591,-300.86,0.00018192,2]
[322808781,1713339043601,-1666.9328375,0.00018267,2]
[322808782,1713339043610,-1744.56280279,0.00018267,2]
[322808784,1713339043619,-171.00530768,0.0001835,2]
[322808786,1713339043629,-166.86,0.00018443,2]
[322808788,1713339043639,-78.15655585,0.000185,2]
[322808791,1713339043655,-1588.77628165,0.000185,2]
[322808793,1713339043665,-1744.56280279,0.000185,2]
[322808795,1713339043675,-171.00530768,0.00018625,2]
[322808797,1713339043684,-892.0,0.000187,2]
[322808799,1713339043693,-183.85469904,0.0001871,2]
[322808801,1713339043702,-1666.9328375,0.00018733,2]
[322808803,1713339043711,-481.19870645,0.00018733,2]
[322808807,1713339043742,219.2,0.00031884,30]
[322808810,1713339043758,-1032.20097925,0.00018733,2]
[322808811,1713339043769,-231.16311709,0.00018733,2]
[322808812,1713339043779,-750.14,0.0001888,2]
[322808813,1713339043788,-5893.04789687,0.000189,3]
[322808814,1713339043805,-156440.42108667,0.000189,3]
[322808818,1713339046143,-155.30252456,0.00017098,2]
[322808819,1713339046152,-246.31919169,0.00017098,2]
[322808820,1713339046161,-89.80674958,0.000189,3]
[322808821,1713339046413,-1767.70437493,0.000189,3]
[322808822,1713339046424,-530.03589362,0.000189,3]
[322809052,1713339050679,441.55957866,0.00031884,30]
[322809053,1713339050802,321.89954053,0.00031884,30]
[322809054,1713339058615,431.35161221,0.00031884,30]
[322809055,1713339064231,221.98677488,0.00031884,30]
[322809056,1713339064395,290.60264957,0.00031884,30]
[322809057,1713339066965,261.89022756,0.00031884,30]
[322809058,1713339068120,206.84319381,0.00031884,30]
[322809059,1713339072431,169.03,0.00031884,30]
[322809060,1713339075516,247.39185688,0.00031884,30]
[322809061,1713339079210,500.0,0.00031884,30]
[322809062,1713339079501,500.0,0.00031884,30]
[322809063,1713339079788,500.0,0.00031884,30]
[322809064,1713339080209,500.0,0.00031884,30]
[322809065,1713339080486,500.0,0.00031884,30]
[322809066,1713339080774,500.0,0.00031884,30]
[322809067,1713339081037,500.0,0.00031884,30]
[322809068,1713339081298,500.0,0.00031884,30]
[322809069,1713339081574,500.0,0.00031884,30]
[322809070,1713339082274,500.0,0.00031884,30]
[322809071,1713339082322,204.1440796,0.00031884,30]
[322809072,1713339093912,366.24567268,0.00031884,30]
[322809073,1713339094489,447.88253621,0.00031884,30]
[322809074,1713339096543,322.54436931,0.00031884,30]
[322809075,1713339098695,304.36296428,0.00031884,30]
[322809076,1713339103123,187.79905237,0.00031884,30]
[322809077,1713339104675,258.71410781,0.00031884,30]
[322809078,1713339104868,334.63908573,0.00031884,30]
[322809079,1713339108923,441.91078294,0.00031884,30]
[322809080,1713339115806,264.01819354,0.00031884,30]
[322809081,1713339119624,335.51643706,0.00031884,30]
[322809082,1713339123645,152.28633316,0.00031884,30]
[322809083,1713339123959,365.54061132,0.00031884,30]
[322809084,1713339155752,571.69877632,0.00031884,30]
[322809085,1713339157350,150.0,0.00031884,30]
[322809086,1713339157638,176.3016684,0.00031884,30]
[322809087,1713339165722,326.1273271,0.00031884,30]
[322809088,1713339172155,468.21665591,0.00031884,30]
[322809089,1713339172446,290.58604548,0.00031884,30]
[322809090,1713339187365,346.0,0.00031884,30]
[322809091,1713339200159,188.34523547,0.00031884,30]
[322809092,1713339202467,321.43433043,0.00031884,30]
[322809093,1713339204732,378.18993561,0.00031884,30]
[322809094,1713339207727,234.81921605,0.00031884,30]
[322809095,1713339210110,240.95051377,0.00031884,30]
[322809096,1713339238308,236.79168515,0.00031884,30]
[322809097,1713339240458,190.06134516,0.00031884,30]
[322809098,1713339256333,467.67481065,0.00031884,30]
[322809099,1713339260434,217.0763831,0.00031884,30]
[322809100,1713339270585,195.13746714,0.00031884,30]
[322809101,1713339283180,333.4262996,0.00031884,30]
[322809102,1713339286592,167.80094327,0.00031884,30]
[322809103,1713339291259,304.75398855,0.00031884,30]
[322809104,1713339293210,165.96095291,0.00031884,30]
[322809105,1713339297203,292.55152748,0.00031884,30]
[322809106,1713339307479,194.53,0.00031865,30]
[322809107,1713339309963,285.97502356,0.00031865,30]